fUSD/lending_fUSD_20251029
["ID","MTS","AMOUNT","RATE_DAILY","PERIOD"]
[392617987,1761750643338,-150.0,0.00014487,2]
[392617988,1761750643348,-182.14585212,0.00014649,2]
[392617989,1761750643357,-803.0656618,0.00014722,2]
[392617990,1761750643367,-164.67,0.00014792,2]
[392617992,1761750643376,-500.0,0.00014798,2]
[392617993,1761750643386,-170.05975976,0.00014798,2]
[392617994,1761750643395,-213.76877731,0.00014798,2]
[392617995,1761750643404,-280.52954232,0.00014798,2]
[392617996,1761750643413,-1877.7945,0.00014799,2]
[392617997,1761750643422,-9036.5552554,0.00014799,2]
[392617999,1761750643431,-1000.0,0.000148,2]
[392618000,1761750643441,-2996.1713,0.000148,2]
[392618001,1761750643450,-4987.26513412,0.00014897,2]
[392618002,1761750643459,-164.63821375,0.00014898,2]
[392618003,1761750643469,-1000.0,0.00014898,2]
[392618004,1761750643479,-16251.7134,0.00014899,2]
[392618005,1761750643490,-93629.2801,0.00014899,2]
[392618006,1761750643499,-243.14588463,0.00014899,2]
[392618007,1761750643509,-567.33705609,0.00014899,2]
[392618008,1761750643521,-386.36733999,0.00014899,2]
[392618009,1761750643530,-503.07491612,0.00014899,2]
[392618010,1761750643539,-500.0,0.00014899,2]
[392618011,1761750643549,-500.0,0.00014899,2]
[392618013,1761750643558,-426.45223635,0.000149,2]
[392618015,1761750643567,-157.6692583,0.000149,2]
[392618017,1761750643577,-779.37047952,0.000149,2]
[392618019,1761750643587,-4377.2321083,0.00014901,2]
[392618020,1761750643598,-1432.26,0.0001491,2]
[392618021,1761750643609,-4556.89,0.00014931,2]
[392618022,1761750643618,-19024.25186024,0.00014932,2]
[392618073,1761750646091,-182.14585212,0.00014744,2]
[392618074,1761750646100,-106.74532803,0.00014932,2]
[392618081,1761750646309,-296.47300786,0.00014558,2]
[392618083,1761750646320,-506.59265394,0.00014558,2]
[392618084,1761750646330,-44030.74653053,0.00014932,2]
[392618085,1761750646339,-172.26160171,0.00014932,2]
[392618086,1761750646348,-150.0,0.00014986,2]
[392618088,1761750646359,-165.8752723,0.00014986,2]
[392618089,1761750646368,-150.00000001,0.00014986,2]
[392618090,1761750646377,-150.00000001,0.00014986,2]
[392618092,1761750646386,-150.0,0.00014986,2]
[392618093,1761750646396,-393.65497967,0.0001499,2]
[392618094,1761750646406,-151.0,0.00014991,2]
[392618095,1761750646415,-151.0,0.00014991,2]
[392618097,1761750646424,-151.0,0.00014991,2]
[392618098,1761750646434,-151.0,0.00014991,2]
[392618099,1761750646444,-151.0,0.00014991,2]
[392618100,1761750646453,-151.0,0.00014991,2]
[392618101,1761750646463,-151.0,0.00014991,2]
[392618102,1761750646472,-151.0,0.00014991,2]
[392618103,1761750646482,-151.0,0.00014991,2]
[392618104,1761750646491,-151.0,0.00014991,2]
[392618105,1761750646501,-151.0,0.00014991,2]
[392618106,1761750646510,-151.0,0.00014991,2]
[392618107,1761750646520,-151.0,0.00014991,2]
[392618108,1761750646530,-151.0,0.00014991,2]
[392618109,1761750646540,-151.0,0.00014991,2]
[392618110,1761750646550,-151.0,0.00014991,2]
[392618115,1761750646724,-151.0,0.00014991,2]
[392618116,1761750646737,-151.0,0.00014991,2]
[392618117,1761750646747,-151.0,0.00014991,2]
[392618118,1761750646757,-151.0,0.00014991,2]
[392618119,1761750646766,-151.0,0.00014991,2]
[392618120,1761750646776,-151.0,0.00014991,2]
[392618121,1761750646786,-151.0,0.00014991,2]
[392618122,1761750646796,-151.0,0.00014991,2]
[392618123,1761750646805,-151.0,0.00014991,2]
[392618124,1761750646815,-151.0,0.00014991,2]
[392618125,1761750646824,-151.0,0.00014991,2]
[392618126,1761750646833,-151.0,0.00014991,2]
[392618128,1761750646845,-151.0,0.00014991,2]
[392618129,1761750646854,-151.0,0.00014991,2]
[392618130,1761750646864,-151.0,0.00014991,2]
[392618131,1761750646873,-1458.26,0.00014991,2]
[392618132,1761750646883,-151.0,0.00014995,2]
[392618133,1761750646892,-500.0,0.00014997,2]
[392618135,1761750646902,-500.0,0.00014997,2]
[392618136,1761750646911,-1430.88,0.00014997,2]
[392618137,1761750646923,-1430.88,0.00014997,2]
[392618138,1761750646932,-500.0,0.00014997,2]
[392618140,1761750646942,-500.0,0.00014997,2]
[392618141,1761750646951,-500.0,0.00014997,2]
[392618142,1761750646961,-500.0,0.00014997,2]
[392618144,1761750646971,-4556.89,0.00014997,2]
[392618145,1761750646980,-151.0,0.00014997,2]
[392618146,1761750646990,-151.0,0.00014997,2]
[392618147,1761750646999,-153771.71135731,0.00014998,2]
[392619843,1761750895978,510.77,7.051e-05,2]
[392619845,1761750896197,510.77,7.423e-05,2]
[392619849,1761750896558,510.77,7.794e-05,2]
[392619853,1761750896742,510.77,8.165e-05,2]
[392619855,1761750896862,510.77,8.536e-05,2]
[392619857,1761750897200,510.77,8.907e-05,2]
[392619860,1761750897440,510.77,9.278e-05,2]
[392619862,1761750897647,510.77,9.649e-05,2]
[392619864,1761750897909,510.77,0.0001002,2]
[392619867,1761750898257,510.77,0.00010392,2]
[392619869,1761750898423,510.77,0.00010763,2]
[392619872,1761750898636,-166.66,0.00013872,2]
[392619873,1761750898660,-195.0,0.00014018,2]
[392619874,1761750898681,-171.40452978,0.00014103,2]
[392619875,1761750898719,510.77,0.00011134,2]
[392619878,1761750898874,510.77,0.00011505,2]
[392619882,1761750899139,510.77,0.00011876,2]
[392619887,1761750899508,510.77,0.00012247,2]
[392619889,1761750899623,510.77,0.00012618,2]
[392619892,1761750899797,510.77,0.00012989,2]
[392619896,1761750900032,510.77,0.00013361,2]
[392619910,1761750901958,-216.9829077,0.00013732,2]
[392620037,1761750918063,-288.7100243,0.00013732,2]
[392620615,1761751109397,284.0,0.000315,120]
[392620616,1761751113765,-5.077068,0.00013732,2]
[392620617,1761751113790,-195.0,0.00013912,2]
[392620618,1761751113813,-205.01292417,0.00013922,2]
[392620619,1761751115443,-216.38452721,0.00013922,2]
[392620620,1761751117248,-173.02092804,0.00013922,2]
[392620621,1761751119312,-642.16162058,0.00013922,2]
[392620622,1761751119334,-69.13133508,0.00013941,2]
[392620623,1761751121002,-204.31866492,0.00013941,2]
[392620624,1761751121026,-66.19889485,0.00013941,2]
[392620625,1761751160025,320.0,0.000315,120]
[392620626,1761751188582,-414.26840955,0.00013884,2]
[392620627,1761751190218,-151.93086821,0.00013866,2]
[392620628,1761751190241,-1.30176408,0.00013884,2]
[392620629,1761751191742,-318.011178,0.00013884,2]
[392620630,1761751193275,-162.20842138,0.00013884,2]
[392620631,1761751195421,-344.47075223,0.00013884,2]
[392620632,1761751197154,-168.28082727,0.00013884,2]
[392620633,1761751200221,-500.0,0.00013884,2]
[392620634,1761751218265,-372.22073145,0.00013884,2]
[392620635,1761751222481,-470.23791604,0.00013884,2]
[392620636,1761751222504,-135.38110515,0.00013941,2]
[392620637,1761751222527,-13.65810038,0.00014,2]
[392620638,1761751228471,362.0,0.000315,120]
[392620639,1761751231471,325.0,0.000315,120]
[392620641,1761751286457,403.0,0.000315,120]
[392620642,1761751293127,-166.34189962,0.00014,2]
[392620643,1761751293150,-202.4616017,0.00014,2]
[392620644,1761751293172,-2.47113199,0.00014003,2]
[392620645,1761751308098,-176.49702007,0.00014003,2]
[392620646,1761751308126,-86.78351506,0.00014003,2]
[392620647,1761751338125,-75.1857663,0.00014003,2]
[392620648,1761751338149,-85.67969672,0.00014048,2]
[392620649,1761751342230,496.0,0.000315,120]
[392620650,1761751367193,164.01039668,0.00014,9]
[392620651,1761751369418,-200.0,0.00013856,2]
[392620652,1761751369442,-109.32030328,0.00014048,2]
[392620653,1761751369463,-151.0,0.00014048,2]
[392620654,1761751370792,150.0,0.00013853,120]
[392620655,1761751383027,-150.0,0.00013853,2]
[392620656,1761751383054,-436.03237156,0.00013901,2]
[392620657,1761751385303,-550.25300512,0.00013901,2]
[392620659,1761751458108,-63.96462332,0.00013901,2]
[392620660,1761751458131,-239.73668524,0.00014092,2]
[392620661,1761751460836,-420.0,0.00014092,2]
[392620662,1761751461008,916.0,0.000315,120]
[392620663,1761751462902,-392.13894152,0.00014092,2]
[392620664,1761751464391,-679.4008371,0.00014092,2]
[392620665,1761751466561,-250.0,0.00014092,2]
[392620666,1761751470764,-364.54432982,0.00014092,2]
[392620667,1761751472818,-289.74699488,0.00014092,2]
[392620669,1761751477328,-250.0,0.00014092,2]
[392620670,1761751479883,-449.44471843,0.00014092,2]
[392620671,1761751486430,-186.69286969,0.00014092,2]
[392620672,1761751487989,-666.0,0.00014092,2]
[392620673,1761751513216,150.0,0.00013488,2]
[392620674,1761751513319,150.0,0.00013488,2]
[392620675,1761751513386,150.0,0.00013488,2]
[392620676,1761751517995,150.0,0.00013488,2]
[392620677,1761751519165,150.0,0.00013488,2]
[392620678,1761751520070,715.16513505,9e-05,2]
[392620679,1761751521070,150.0,0.00013488,2]
[392620680,1761751526196,1018.17836797,0.000108,2]
[392620681,1761751532581,153.17893229,0.00013488,2]
[392620682,1761751533919,150.0,0.00013488,2]
[392620683,1761751537132,1383.02095864,9e-05,2]
[392620684,1761751548115,-175.69608443,0.00014092,2]
[392620685,1761751550437,-80.90853889,0.00014092,2]
[392620686,1761751550466,-195.0,0.00014093,2]
[392620687,1761751550493,-47.57203235,0.00014103,2]
[392620688,1761751553430,-463.19796765,0.00014103,2]
[392620689,1761751553459,-37.62537668,0.00014103,2]
[392620690,1761751558337,-500.0,0.00013903,2]
[392620691,1761751608959,-306.29701461,0.00013803,2]
[392620692,1761751608983,-71.58353437,0.00013903,2]
[392620693,1761751618693,5000.0,0.000162,5]
[392620696,1761751638115,-513.13554452,0.00013886,2]
[392620697,1761751640850,-175.02460763,0.00013886,2]
[392620698,1761751646454,-373.20583495,0.00013886,2]
[392620699,1761751668855,-242.97438483,0.00013886,2]
[392620700,1761751671101,-193.76462422,0.00013886,2]
[392620701,1761751671295,150.0,0.00031507,120]
[392620702,1761751674234,-500.0,0.00013886,2]
[392620703,1761751677418,-1.89500385,0.00013886,2]
[392620704,1761751677441,-38.41646563,0.00013903,2]
[392620705,1761751677464,-131.5857182,0.00013903,2]
[392620706,1761751702406,463.68,0.00031507,120]
[392620707,1761751705590,252.0,0.000315,120]
[392620708,1761751728110,-250.0,0.00013865,2]
[392620709,1761751728138,-18.4142818,0.00013903,2]
[392620710,1761751728163,-142.07284417,0.00014003,2]
[392620711,1761751730572,-73.73241511,0.00014003,2]
[392620712,1761751730600,-62.82009354,0.00014103,2]
[392620713,1761751730622,-92.13539095,0.00014103,2]
[392620714,1761751733949,-500.0,0.00013981,2]
[392620715,1761751735887,-250.0,0.00013981,2]
[392620716,1761751738219,-500.0,0.00013981,2]
[392620717,1761751742560,-254.38446687,0.00013981,2]
[392620718,1761751744061,-357.00677028,0.00013981,2]
[392620719,1761751746207,-329.97438483,0.00013981,2]
[392620720,1761751748307,2608.6879,7.945e-05,2]
[392620745,1761751749683,-256.16478905,0.00013981,2]
[392620761,1761751751254,-191.85334433,0.00013981,2]
[392620762,1761751753325,-366.18163817,0.00013981,2]
[392620763,1761751754346,-217.60937087,0.00013981,2]
[392620764,1761751757814,-275.89539237,0.00013981,2]
[392620765,1761751759964,-250.0,0.00013981,2]
[392620766,1761751761533,-224.10460763,0.00013981,2]
[392620767,1761751762209,192.0,0.000315,120]
[392620768,1761751763866,408.0,0.000315,120]
[392620769,1761751768454,-200.49963692,0.00013981,2]
[392620774,1761751788139,-257.02561517,0.00013966,2]
[392620775,1761751790775,-174.10460763,0.00013966,2]
[392620776,1761751792843,-152.61523579,0.00013966,2]
[392620777,1761751795366,-314.7698014,0.00013966,2]
[392620778,1761751797742,-580.75954798,0.00013966,2]
[392620779,1761751801797,-432.5530858,0.00013942,2]
[392620780,1761751801836,-89.44295448,0.00013966,2]
[392620781,1761751802748,1000.0,0.00031507,120]
[392620783,1761751816333,1000.0,0.00031507,120]
[392620784,1761751818266,-298.4808664,0.00013896,2]
[392620785,1761751821361,-299.50036308,0.00013896,2]
[392620786,1761751823471,-252.65272235,0.00013896,2]
[392620787,1761751825040,-446.04562913,0.00013896,2]
[392620788,1761751826613,-160.0,0.00013896,2]
[392620789,1761751828015,998.0,0.000315,120]
[392620790,1761751829523,631.6671052,0.00031507,120]
[392620791,1761751829782,-353.9219872,0.00013896,2]
[392620796,1761751832164,-408.0,0.00013896,2]
[392620816,1761751832485,-5197.61690084,0.00013896,2]
[392620817,1761751832495,-6649.31324286,0.00013942,2]
[392620818,1761751832504,-234.05353202,0.00013966,2]
[392620819,1761751832514,-300.0,0.0001398,2]
[392620820,1761751832523,-1200.0,0.0001398,2]
[392620821,1761751832534,-16729.85587997,0.00013981,2]
[392620822,1761751832578,-428.51527032,0.00013981,2]
[392620823,1761751832590,-396.807445,0.00013981,2]
[392620825,1761751835118,-180.8195341,0.00013971,2]
[392620829,1761751837376,-500.5302322,0.00013971,2]
[392620847,1761751838189,-397.34727765,0.00013971,2]
[392620848,1761751838251,-981.49295605,0.00013971,2]
[392620849,1761751838261,-2060.19,0.00013971,2]
[392620850,1761751838273,-1882.60142636,0.00013981,2]
[392620851,1761751838291,-1122.8217,0.00013981,2]
[392620852,1761751838302,-3557.31896298,0.00013981,2]
[392620853,1761751838407,-2432.28688923,0.00013981,2]
[392620854,1761751838419,-3253.27270432,0.00013981,2]
[392620855,1761751838430,-12423.44427142,0.00013981,2]
[392620856,1761751838441,-11792.15376043,0.00013981,2]
[392620857,1761751838453,-8335.46535755,0.00013981,2]
[392620858,1761751838465,-2368.72871057,0.00013981,2]
[392620873,1761751841410,-1.6e-07,0.00013981,2]
[392620874,1761751841461,-897.25299272,0.00013981,2]
[392620875,1761751841938,-261.55530568,0.00013981,2]
[392620876,1761751841950,-262014.63674992,0.00013981,2]
[392620877,1761751841961,-10201.67088374,0.00013981,2]
[392620883,1761751843566,-11235.0,0.00013981,2]
[392620884,1761751843577,-578.34,0.00013981,2]
[392620886,1761751843685,-266470.75961391,0.00013981,2]
[392620887,1761751843695,-348.65763965,0.00014042,2]
[392620888,1761751843704,-6649.3132428,0.00014048,2]
[392620889,1761751843714,-88.96838625,0.00014103,2]
[392620890,1761751843723,-151.0,0.00014103,2]
[392620891,1761751843732,-6649.3132428,0.00014155,2]
[392620892,1761751843742,-166.66,0.00014164,2]
[392620893,1761751843751,-1000.0,0.00014329,2]
[392620894,1761751843760,-166.66,0.00014456,2]
[392620895,1761751843770,-9999.99,0.00014504,2]
[392620896,1761751843781,-1659.03,0.00014504,2]
[392620898,1761751843791,-8292.65,0.00014504,2]
[392620899,1761751843800,-150.99,0.00014576,2]
[392620900,1761751843811,-9999.99,0.00014576,2]
[392620901,1761751843821,-499.99,0.00014576,2]
[392620902,1761751843831,-9999.99,0.00014576,2]
[392620903,1761751843840,-500.0,0.00014576,2]
[392620904,1761751843849,-179.19119201,0.00014576,2]
[392620905,1761751843859,-9031.12,0.00014577,2]
[392620906,1761751843868,-14265.8,0.00014577,2]
[392620907,1761751843877,-150.99,0.00014577,2]
[392620908,1761751843887,-999.99,0.00014577,2]
[392620909,1761751843897,-6025.21,0.00014577,2]
[392620910,1761751843906,-9999.99,0.00014577,2]
[392620911,1761751843916,-627.69,0.00014577,2]
[392620912,1761751843925,-360.62,0.00014577,2]
[392620913,1761751843934,-3583.14,0.00014577,2]
[392620914,1761751843944,-9999.99,0.00014577,2]
[392620915,1761751843953,-1717.98,0.00014577,2]
[392620916,1761751843963,-892.67338722,0.00014693,2]
[392620917,1761751843972,-273.45,0.00014715,2]
[392620918,1761751843981,-221.53471527,0.0001473,2]
[392620919,1761751843990,-166.66,0.00014748,2]
[392620920,1761751844001,-2996.1713,0.00014799,2]
[392620921,1761751844012,-1000.0,0.00014799,2]
[392620922,1761751844022,-259.79015984,0.000148,2]
[392620923,1761751844032,-11815.6062,0.00014832,2]
[392620924,1761751844042,-3385.67001,0.0001485,2]
[392620925,1761751844051,-3385.67002,0.0001485,2]
[392620926,1761751844061,-3385.67001,0.0001485,2]
[392620927,1761751844071,-3385.67002,0.0001485,2]
[392620928,1761751844081,-3385.67001,0.0001485,2]
[392620929,1761751844090,-3385.67002,0.0001485,2]
[392620930,1761751844100,-259.79015984,0.0001485,2]
[392620931,1761751844109,-275.06678268,0.00014879,2]
[392620932,1761751844119,-1353.41,0.00014881,2]
[392620933,1761751844128,-151.0,0.00014889,2]
[392620934,1761751844140,-151.0,0.00014889,2]
[392620935,1761751844152,-151.0,0.00014889,2]
[392620936,1761751844161,-151.0,0.00014889,2]
[392620937,1761751844170,-151.0,0.00014889,2]
[392620938,1761751844180,-151.0,0.00014889,2]
[392620939,1761751844190,-151.0,0.00014889,2]
[392620940,1761751844200,-151.0,0.00014889,2]
[392620941,1761751844208,-151.0,0.00014889,2]
[392620942,1761751844222,-151.0,0.00014889,2]
[392620943,1761751844232,-151.0,0.00014889,2]
[392620944,1761751844241,-151.0,0.00014889,2]
[392620945,1761751844250,-151.0,0.00014889,2]
[392620946,1761751844260,-151.0,0.00014889,2]
[392620947,1761751844269,-151.0,0.00014889,2]
[392620948,1761751844279,-151.0,0.00014889,2]
[392620949,1761751844287,-151.0,0.00014889,2]
[392620950,1761751844296,-151.0,0.00014889,2]
[392620951,1761751844306,-151.0,0.00014889,2]
[392620952,1761751844314,-151.0,0.00014889,2]
[392620953,1761751844324,-151.0,0.00014889,2]
[392620954,1761751844333,-151.0,0.00014889,2]
[392620955,1761751844343,-151.0,0.00014889,2]
[392620956,1761751844352,-151.0,0.00014889,2]
[392620957,1761751844361,-151.0,0.00014889,2]
[392620958,1761751844370,-151.0,0.00014889,2]
[392620959,1761751844379,-151.0,0.00014889,2]
[392620960,1761751844389,-151.0,0.00014889,2]
[392620961,1761751844399,-151.0,0.00014889,2]
[392620962,1761751844407,-151.0,0.00014889,2]
[392620963,1761751844416,-151.0,0.00014889,2]
[392620964,1761751844564,-1000.0,0.00014897,2]
[392620965,1761751844574,-500.0,0.00014897,2]
[392620966,1761751844583,-213.76877731,0.00014897,2]
[392620967,1761751844593,-280.52954232,0.00014897,2]
[392620968,1761751844602,-9036.5552554,0.00014898,2]
[392620969,1761751844611,-16251.7134,0.00014898,2]
[392620970,1761751844620,-1000.0,0.00014899,2]
[392620971,1761751844630,-455.70264424,0.000149,2]
[392620972,1761751844639,-157.6692583,0.000149,2]
[392620973,1761751844648,-164.63821375,0.000149,2]
[392620974,1761751844657,-684.80348182,0.000149,2]
[392620975,1761751844667,-259.79015984,0.000149,2]
[392620976,1761751844676,-245.15692338,0.000149,2]
[392620977,1761751844686,-3193.26343118,0.000149,2]
[392620978,1761751844696,-250.96597165,0.000149,2]
[392620979,1761751844705,-503.13226371,0.00014973,2]
[392620980,1761751844715,-500.0,0.00014973,2]
[392620981,1761751844725,-171.43322433,0.00014973,2]
[392620982,1761751844734,-500.0,0.00014973,2]
[392620983,1761751844743,-500.0,0.00014973,2]
[392620984,1761751844751,-503.91202727,0.00014973,2]
[392620985,1761751844762,-500.0,0.00014973,2]
[392620986,1761751844771,-217.68277019,0.00014973,2]
[392620987,1761751844780,-500.0,0.00014973,2]
[392620988,1761751844789,-502.67293591,0.00014973,2]
[392620989,1761751844799,-500.0,0.00014973,2]
[392620990,1761751844808,-500.0,0.00014973,2]
[392620991,1761751844817,-500.0,0.00014973,2]
[392620992,1761751844827,-500.0,0.00014973,2]
[392620993,1761751844837,-500.0,0.00014973,2]
[392620994,1761751844846,-500.0,0.00014973,2]
[392620995,1761751844855,-500.0,0.00014973,2]
[392620996,1761751844864,-433.21534504,0.00014973,2]
[392620997,1761751844873,-500.0,0.00014973,2]
[392620998,1761751844883,-473.06516499,0.00014973,2]
[392620999,1761751844892,-500.0,0.00014973,2]
[392621000,1761751844902,-500.0,0.00014973,2]
[392621001,1761751844912,-502.37096136,0.00014973,2]
[392621002,1761751844922,-500.0,0.00014973,2]
[392621003,1761751844931,-500.0,0.00014973,2]
[392621004,1761751844940,-506.5786996,0.00014973,2]
[392621005,1761751844949,-150.0,0.00014986,2]
[392621006,1761751844959,-150.0,0.00014986,2]
[392621007,1761751844969,-150.0,0.00014986,2]
[392621008,1761751844978,-155.80232479,0.00014986,2]
[392621009,1761751844987,-150.0,0.00014986,2]
[392621010,1761751844996,-262.43665312,0.0001499,2]
[392621011,1761751845005,-262.43665312,0.0001499,2]
[392621012,1761751845014,-262.43665312,0.0001499,2]
[392621013,1761751845023,-170.05975976,0.00014996,2]
[392621014,1761751845032,-500.0,0.00014997,2]
[392621015,1761751845041,-503.07491612,0.00014997,2]
[392621016,1761751845051,-500.0,0.00014997,2]
[392621017,1761751845060,-500.0,0.00014997,2]
[392621018,1761751845069,-500.0,0.00014997,2]
[392621019,1761751845079,-500.0,0.00014997,2]
[392621020,1761751845088,-500.0,0.00014997,2]
[392621021,1761751845097,-500.0,0.00014997,2]
[392621022,1761751845106,-243.14588463,0.00014997,2]
[392621023,1761751845115,-500.0,0.00014997,2]
[392621024,1761751845124,-386.36733999,0.00014997,2]
[392621025,1761751845133,-60002.01152687,0.00014998,2]
[392621026,1761751845150,-17382.53361907,0.00014998,2]
[392621027,1761751845164,-6533.52043946,0.00014998,2]
[392621028,1761751845175,-200.0,0.00014998,2]
[392621029,1761751845184,-4367.02,0.00014998,2]
[392621030,1761751845193,-500.0,0.00014999,2]
[392621031,1761751845204,-500.0,0.00014999,2]
[392621032,1761751845214,-169.72,0.00014999,2]
[392621033,1761751845223,-483.04510273,0.00014999,2]
[392621034,1761751845235,-500.0,0.00014999,2]
[392621035,1761751845244,-500.0,0.00014999,2]
[392621036,1761751845253,-500.0,0.00014999,2]
[392621037,1761751845263,-500.0,0.00014999,2]
[392621038,1761751845272,-500.0,0.00014999,2]
[392621039,1761751845280,-500.0,0.00014999,2]
[392621040,1761751845289,-1411.47,0.00014999,2]
[392621041,1761751845299,-1411.47,0.00014999,2]
[392621042,1761751845308,-1015.56996986,0.00014999,2]
[392621043,1761751845320,-390.3849186,0.00014999,2]
[392621050,1761751846451,-1125.6,0.00014261,2]
[392621053,1761751847410,-1373.05698589,0.00014261,2]
[392621054,1761751847422,-269.67716884,0.00014261,2]
[392621055,1761751847481,-1123.8,0.00014261,2]
[392621056,1761751847612,-2532.11611049,0.00014261,2]
[392621057,1761751863718,-212.9588813,0.00013942,2]
[392621059,1761751867205,-399.08,0.00013942,2]
[392621060,1761751869746,-369.79962213,0.00013942,2]
[392621061,1761751869770,-69.91147654,0.00013961,2]
[392621062,1761751872026,-200.51166685,0.00013961,2]
[392621063,1761751872052,-145.52422936,0.0001398,2]
[392621064,1761751873941,-241.32391754,0.0001398,2]
[392621065,1761751873965,-274.47423204,0.0001398,2]
[392621066,1761751875983,-155.01583477,0.0001398,2]
[392621067,1761751876006,-46.61524638,0.0001398,2]
[392621068,1761751877516,-298.36891885,0.0001398,2]
[392621069,1761751880244,-155.01583477,0.0001398,2]
[392621070,1761751880269,-21.33416523,0.0001398,2]
[392621071,1761751923052,-245.15094305,0.00013979,2]
[392621072,1761751940204,223.75821693,0.0001388,2]
[392621073,1761751946386,262.0,0.000315,120]
[392621074,1761751949636,417.7275,0.00013881,2]
[392621075,1761751957592,4556.13118391,0.00013881,2]
[392621076,1761752004293,500.0,0.00027923,120]
[392621077,1761752004735,500.0,0.00029525,120]
[392621078,1761752005579,500.0,0.00031126,120]
[392621079,1761752077070,500.0,0.00030137,120]
[392621080,1761752106813,154.0,0.000195,3]
[392621081,1761752107090,153.0,0.000195,3]
[392621082,1761752107713,153.0,0.000195,3]
[392621083,1761752107957,153.0,0.000195,3]
[392621084,1761752108223,153.0,0.000195,3]
[392621085,1761752133229,-217.27472627,0.00013781,2]
[392621086,1761752135557,-651.33312728,0.00013581,2]
[392621087,1761752148045,2000.0,0.00031506,120]
[392621089,1761752193875,-253.55487055,0.00013513,2]
[392621090,1761752197081,-230.23014113,0.00013513,2]
[392621091,1761752198578,-278.11259062,0.00013513,2]
[392621092,1761752202324,-106.7102507,0.00013513,2]
[392621093,1761752202348,-170.31308191,0.00013581,2]
[392621094,1761752208130,-154.38627395,0.00013581,2]
[392621095,1761752210370,-283.14637179,0.00013581,2]
[392621096,1761752223136,-280.31521651,0.00013581,2]
[392621097,1761752226686,-242.96350348,0.00013581,2]
[392621100,1761752253353,5483.93,0.0001341,2]
[392621103,1761752345325,318.15751783,0.00031126,120]
[392621104,1761752364345,151.0,0.000315,120]
[392621105,1761752368093,13001.47,0.00013185,2]
[392621112,1761752429741,193.0,0.000315,120]
[392621113,1761752474597,426.0,0.00030137,120]
[392621114,1761752475005,426.0,0.00030137,120]
[392621115,1761752475367,426.0,0.00030137,120]
[392621116,1761752475777,426.0,0.00030137,120]
[392621117,1761752476113,426.0,0.00030137,120]
[392621118,1761752476346,426.0,0.00030137,120]
[392621119,1761752476503,426.0,0.00030137,120]
[392621120,1761752476698,426.0,0.00030137,120]
[392621121,1761752476879,426.0,0.00030137,120]
[392621122,1761752477030,426.0,0.00030137,120]
[392621123,1761752477184,426.0,0.00030137,120]
[392621124,1761752477445,426.0,0.00030137,120]
[392621125,1761752477567,426.0,0.00030137,120]
[392621126,1761752477688,426.0,0.00030137,120]
[392621127,1761752478066,426.0,0.00030137,120]
[392621128,1761752478159,426.0,0.00030137,120]
[392621129,1761752478259,426.0,0.00030137,120]
[392621130,1761752478379,426.0,0.00030137,120]
[392621131,1761752478493,426.0,0.00030137,120]
[392621132,1761752479078,426.0,0.00030137,120]
[392621133,1761752479179,426.0,0.00030137,120]
[392621134,1761752479352,426.0,0.00030137,120]
[392621135,1761752479511,426.0,0.00030137,120]
[392621136,1761752479634,442.0,0.00030137,120]
[392621142,1761752601046,500.0,0.00027682,120]
[392621143,1761752601429,500.0,0.00029364,120]